fUSD/lending_fUSD_20240626
["ID","MTS","AMOUNT","RATE_DAILY","PERIOD"]
[330435635,1719401453175,-112.55724674,0.0002156,2]
[330435636,1719401453188,-37.44275326,0.0002156,2]
[330435637,1719401453197,-150.0,0.0002157,2]
[330435638,1719401453208,-150.0,0.00021579,2]
[330435639,1719401453218,-150.0,0.00021607,2]
[330435640,1719401453230,-150.0,0.0002161,2]
[330435641,1719401453240,-115.76972122,0.00021616,2]
[330435642,1719401453286,-34.23027878,0.00021616,2]
[330435643,1719401453296,-150.0,0.00021628,2]
[330435644,1719401453306,-150.0,0.0002163,2]
[330435645,1719401453316,-150.0,0.00021632,2]
[330435646,1719401453326,-150.0,0.00021635,2]
[330435647,1719401453335,-150.0,0.00021638,2]
[330435648,1719401453344,-150.0,0.00021638,2]
[330435649,1719401453354,-150.0,0.00021656,2]
[330435650,1719401453364,-150.0,0.00021663,2]
[330435651,1719401453373,-150.0,0.00021669,2]
[330435652,1719401453388,-150.0,0.00021682,2]
[330435653,1719401453397,-150.0,0.0002169,2]
[330435654,1719401453407,-150.0,0.00021701,2]
[330435655,1719401453416,-150.0,0.0002172,2]
[330435656,1719401453426,-150.0,0.00021727,2]
[330435657,1719401453436,-150.0,0.00021737,2]
[330435658,1719401453446,-82.76522452,0.00021743,2]
[330435659,1719401453459,-181.80824619,0.00021743,2]
[330435660,1719401453470,-150.0,0.00021756,2]
[330435661,1719401453480,-389587.10893687,0.00022,4]
[330435662,1719401453492,-701.39755256,0.00022,4]
[330435663,1719401453504,-698.06763202,0.00022,4]
[330435664,1719401453517,-612.8232,0.00022,4]
[330435670,1719401594474,200.0,0.00025995,120]
[330435671,1719401598515,200.0,0.00025365,120]
[330435675,1719401652941,791.99564126,0.00011,2]
[330435677,1719401670377,157.38929812,6.94e-05,2]
[330435678,1719401685407,19074.92689981,0.00011,2]
[330435679,1719401687346,959.19256352,0.00011,2]
[330435686,1719401782228,959.19256352,0.00011,2]
[330435693,1719401871951,959.19256352,0.00011,2]
[330435696,1719401944994,10000.0,0.00026,120]
[330435698,1719401967111,6240.7,0.00026,120]
[330435699,1719401977722,959.19256352,0.00011,2]
[330435703,1719402130127,16574.49704538,0.00010999,2]
[330435705,1719402222362,543.96475932,0.00010193,2]
[330435719,1719402632648,-462.53216332,0.00011099,2]
[330435720,1719402632678,-984.46783668,0.00011099,2]
[330435721,1719402632687,-1015.53216332,0.000111,2]
[330435722,1719402632762,-280.56667432,0.000111,2]
[330435723,1719402632797,1366.00115088,0.00010193,2]
[330435724,1719402638218,-3069.18176236,0.000111,2]
[330435725,1719402638228,-2944.67779259,0.000112,2]
[330435726,1719402638238,-87.67743853,0.00011798,2]
[330435727,1719402638250,-212.32256147,0.00011798,2]
[330435728,1719402638259,-150.0,0.00011799,2]
[330435729,1719402638269,-150.0,0.00011799,2]
[330435730,1719402638278,-519.86065789,0.00011799,2]
[330435731,1719402638287,-1316.21724376,0.000118,2]
[330435732,1719402638340,-333.78275624,0.000118,2]
[330435733,1719402638350,-305.22875309,0.00012355,2]
[330435734,1719402638359,-7547.62890719,0.00012355,2]
[330435735,1719402638368,-526.547858,0.00012355,2]
[330435736,1719402638378,-420.0,0.00012954,2]
[330435737,1719402638388,-150.0,0.00013315,2]
[330435738,1719402638397,-822.6499767,0.00013333,2]
[330435739,1719402638407,-489.76,0.0001374,2]
[330435740,1719402638416,-1340.26171979,0.00013899,2]
[330435741,1719402638425,-3473.3896,0.000139,2]
[330435742,1719402638434,-212.1083,0.000139,2]
[330435743,1719402638444,-258.5326,0.000139,2]
[330435744,1719402638454,-712.40487382,0.000139,2]
[330435745,1719402638463,-182963.14342572,0.00014,2]
[330435746,1719402638473,-499.99,0.00014,2]
[330435747,1719402638482,-250.0,0.00014017,2]
[330435748,1719402638492,-712.40487381,0.00014789,2]
[330435749,1719402638501,-213.8342677,0.000148,2]
[330435750,1719402638512,-256.76958799,0.00014932,2]
[330435751,1719402638521,-103459.23824704,0.00015,2]
[330435752,1719402638533,-1754.23249678,0.00015,2]
[330435753,1719402638556,-1221.54032,0.00015,2]
[330435755,1719402640487,-718.87488019,0.00015,2]
[330435756,1719402640550,-3761.93,0.00015,2]
[330435919,1719402643688,-822.6499767,0.00013333,2]
[330435920,1719402643698,-1273.9738233,0.00015,2]
[330435921,1719402643710,-787.0295784,0.00015,2]
[330435931,1719402643799,-0.00239541,0.00015,2]
[330435937,1719402643898,-560.94767266,0.00015,2]
[330435938,1719402643964,-610.0,0.00015,2]
[330438272,1719403002253,392.43987919,0.00010194,2]
[330438273,1719403094566,7558.87515666,0.00010194,2]
[330438277,1719403188691,-8627.3336,0.00012991,2]
[330438278,1719403224372,44468.06642619,0.00015746,30]
[330438279,1719403292303,40476.81204312,0.00019086,30]
[330438354,1719403831594,-1202.02211154,0.00012344,2]
[330438355,1719403831655,-707.64712382,0.00012344,2]
[330438356,1719403831665,-844.6469,0.000149,2]
[330438357,1719403831674,-5137.70597618,0.00015,2]
[330438358,1719403831685,-4604.1,0.00015,2]
[330438359,1719403831698,-3821.84752941,0.00015,2]
[330438360,1719403831772,-27826.70657209,0.00015,2]
[330438361,1719403831783,-1750.0,0.00015,2]
[330438362,1719403831794,-43456.49955598,0.00015,2]
[330438363,1719403831804,-169.61234555,0.00015,2]
[330438364,1719403831813,-1232.67176,0.00015,2]
[330438365,1719403831823,-497.33,0.00015372,2]
[330438366,1719403831833,-166.53,0.00016747,2]
[330438367,1719403831842,-465.27,0.00016903,2]
[330438368,1719403831852,-199.68638685,0.00016971,2]
[330438369,1719403831862,-3000.0,0.00017,2]
[330438370,1719403831872,-2524.0,0.00017,2]
[330438371,1719403831881,-3000.0,0.00017,2]
[330438372,1719403831892,-4000.0,0.00017,2]
[330438373,1719403831902,-173.34,0.00017936,2]
[330438374,1719403831913,-188.19,0.0001801,2]
[330438375,1719403831922,-1364.24552612,0.00018182,2]
[330438376,1719403831931,-150.94,0.00018357,2]
[330438377,1719403831943,-150.94,0.00018436,2]
[330438378,1719403831952,-150.94,0.00018516,2]
[330438379,1719403831961,-161.15,0.0001855,2]
[330438380,1719403831971,-19770.94,0.00018578,2]
[330438381,1719403831980,-150.94,0.00018596,2]
[330438382,1719403831991,-150.0,0.00018604,2]
[330438383,1719403832001,-167.84,0.00018605,2]
[330438384,1719403832011,-1000.0,0.00018627,2]
[330438385,1719403832020,-2000.0,0.00018658,3]
[330438386,1719403832030,-150.94,0.00018675,2]
[330438387,1719403832040,-234.96,0.00018735,2]
[330438388,1719403832050,-150.94,0.00018755,2]
[330438389,1719403832060,-165.58,0.00018824,2]
[330438390,1719403832070,-150.94,0.00018835,2]
[330438392,1719403832079,-250.0,0.00018856,2]
[330438394,1719403832089,-188.19,0.00018911,2]
[330438397,1719403832099,-150.94,0.00018914,2]
[330438398,1719403832110,-150.94,0.00018994,2]
[330438399,1719403832124,-150.94,0.00019074,2]
[330438400,1719403832133,-34973.06482861,0.00019086,2]
[330438401,1719403832143,-641.0,0.000191,3]
[330438402,1719403832152,-2988.0,0.000191,3]
[330438403,1719403832162,-2491.89774885,0.00019153,2]
[330438404,1719403832171,-150.94,0.00019154,2]
[330438405,1719403832181,-465.27,0.00019167,2]
[330438406,1719403832193,-250.0,0.00019178,2]
[330438407,1719403832202,-1000.0,0.000192,2]
[330438408,1719403832212,-225.0,0.000192,2]
[330438409,1719403832222,-1000.0,0.000192,2]
[330438410,1719403832231,-355.0,0.000192,2]
[330438411,1719403832241,-150.94,0.00019233,2]
[330438412,1719403832250,-150.94,0.00019313,2]
[330438413,1719403832260,-1000.0,0.000196,2]
[330438414,1719403832269,-188.19,0.00019811,2]
[330438415,1719403832279,-151.174,0.00019839,2]
[330438416,1719403832289,-252.946,0.00019839,2]
[330438417,1719403832300,-150.224,0.00019839,2]
[330438418,1719403832311,-150.0,0.00019839,2]
[330438419,1719403832321,-156.251,0.00019839,2]
[330438420,1719403832332,-150.0,0.00019839,2]
[330438421,1719403832342,-1232.67176,0.0002,2]
[330438422,1719403832351,-352.6212,0.00020232,2]
[330438423,1719403832361,-1000.0,0.000204,2]
[330438424,1719403832371,-1144.33961364,0.00020612,2]
[330438425,1719403832381,-188.19,0.00020712,2]
[330438426,1719403832390,-1144.33961362,0.00020755,2]
[330438427,1719403832399,-1000.0,0.000208,2]
[330438428,1719403832409,-1144.33961362,0.00020898,2]
[330438429,1719403832419,-1000.0,0.00020956,2]
[330438430,1719403832429,-1250.0,0.00021,2]
[330438431,1719403832440,-600.0,0.00021,7]
[330438432,1719403832450,-1144.33961362,0.00021041,2]
[330438433,1719403832460,-1200.0,0.000211,7]
[330438434,1719403832470,-1144.33961362,0.00021184,2]
[330438435,1719403832480,-1100.0,0.00021195,2]
[330438436,1719403832491,-500.0,0.00021195,2]
[330438437,1719403832501,-500.0,0.00021195,2]
[330438438,1719403832511,-500.0,0.00021195,2]
[330438439,1719403832520,-1500.0,0.00021195,2]
[330438440,1719403832530,-1800.0,0.000212,7]
[330438441,1719403832540,-166.53,0.00021268,2]
[330438442,1719403832550,-2400.0,0.000213,7]
[330438443,1719403832560,-1719.371942,0.00021321,2]
[330438444,1719403832569,-468.600637,0.00021321,2]
[330438445,1719403832580,-348.527814,0.00021321,2]
[330438446,1719403832590,-167.111417,0.00021321,2]
[330438447,1719403832600,-1144.33961362,0.00021328,2]
[330438448,1719403832609,-1000.0,0.00021342,2]
[330438449,1719403832619,-2500.0,0.00021342,2]
[330438450,1719403832629,-625.99901698,0.00021343,2]
[330438451,1719403832639,-181.83894054,0.00021356,2]
[330438452,1719403832648,-318.15881836,0.00021356,2]
[330438453,1719403832658,-1017.07313308,0.00021364,2]
[330438454,1719403832668,-3000.0,0.000214,7]
[330438455,1719403832678,-625.99901695,0.00021423,2]
[330438456,1719403832689,-465.27,0.00021431,2]
[330438457,1719403832699,-154.35,0.00021433,2]
[330438458,1719403832709,-100000.0,0.00021442,2]
[330438459,1719403832720,-500.0,0.00021443,2]
[330438460,1719403832730,-1000.0,0.00021443,2]
[330438461,1719403832741,-245000.0,0.00021443,2]
[330438462,1719403832751,-1144.33961362,0.00021471,2]
[330438463,1719403832761,-181.83894051,0.00021471,2]
[330438464,1719403832780,-16573.14208466,0.000215,3]
[330438465,1719403832793,-600.0,0.000215,7]
[330438466,1719403832803,-625.99901695,0.00021502,2]
[330438467,1719403832813,-953.06819608,0.00021559,2]
[330438468,1719403832824,-1094.15745873,0.0002156,2]
[330438469,1719403832834,-1110.41512491,0.0002156,2]
[330438470,1719403832845,-384.90168169,0.00021567,2]
[330438471,1719403832855,-625.99901695,0.00021582,2]
[330438472,1719403832865,-181.83894051,0.00021585,2]
[330438473,1719403832875,-1719.371942,0.00021587,2]
[330438474,1719403832885,-468.600637,0.00021587,2]
[330438475,1719403832896,-348.527814,0.00021587,2]
[330438476,1719403832906,-167.111417,0.00021587,2]
[330438477,1719403832916,-600.0,0.000216,7]
[330438478,1719403832926,-188.19,0.00021612,2]
[330438479,1719403832936,-622.04958902,0.00021613,2]
[330438480,1719403832948,-1144.33961362,0.00021614,2]
[330438481,1719403832958,-500.0,0.00021626,2]
[330438482,1719403832968,-155.34,0.00021644,2]
[330438483,1719403832979,-153.39,0.00021644,2]
[330438484,1719403832990,-625.99901695,0.00021661,2]
[330438485,1719403832999,-384.90168169,0.00021678,2]
[330438486,1719403833010,-7500.0,0.000217,2]
[330438487,1719403833020,-600.0,0.000217,7]
[330438488,1719403833030,-286.6178998,0.000217,2]
[330438489,1719403833040,-174.83982574,0.000217,2]
[330438490,1719403833051,-185.61172509,0.000217,2]
[330438491,1719403833060,-181.83894051,0.000217,2]
[330438492,1719403833070,-500.0,0.00021725,2]
[330438493,1719403833080,-200.0,0.00021725,2]
[330438494,1719403833091,-150.0,0.00021729,2]
[330438495,1719403833104,-1012.87391772,0.00021732,2]
[330438496,1719403833115,-150.0,0.00021733,2]
[330438497,1719403833125,-150.0,0.00021733,2]
[330438498,1719403833135,-150.0,0.00021736,2]
[330438499,1719403833147,-150.0,0.00021739,2]
[330438500,1719403833157,-150.0,0.0002174,2]
[330438501,1719403833167,-150.0,0.0002174,2]
[330438502,1719403833177,-625.99901695,0.00021741,2]
[330438503,1719403833189,-1100.0,0.00021743,2]
[330438504,1719403833201,-1500.0,0.00021743,2]
[330438505,1719403833211,-150.0,0.00021744,2]
[330438506,1719403833222,-1000.0,0.00021745,2]
[330438507,1719403833232,-150.0,0.00021746,2]
[330438508,1719403833243,-251.97232857,0.00021747,2]
[330438509,1719403833252,-150.0,0.00021747,2]
[330438510,1719403833262,-150.0,0.00021748,2]
[330438511,1719403833272,-955.85753929,0.00021749,2]
[330438512,1719403833282,-150.0,0.0002175,2]
[330438513,1719403833292,-150.0,0.0002175,2]
[330438514,1719403833303,-150.0,0.0002175,2]
[330438515,1719403833313,-150.0,0.00021751,2]
[330438516,1719403833323,-150.0,0.00021754,2]
[330438517,1719403833335,-150.0,0.00021754,2]
[330438518,1719403833345,-150.0,0.00021755,2]
[330438519,1719403833355,-150.0,0.00021756,2]
[330438520,1719403833365,-1144.33961362,0.00021757,2]
[330438521,1719403833376,-150.0,0.00021757,2]
[330438522,1719403833387,-150.0,0.00021759,2]
[330438523,1719403833396,-150.0,0.00021762,2]
[330438524,1719403833406,-150.0,0.00021763,2]
[330438525,1719403833417,-150.0,0.00021764,2]
[330438526,1719403833427,-150.0,0.00021764,2]
[330438527,1719403833438,-741.0,0.00021766,2]
[330438528,1719403833451,-150.0,0.00021767,2]
[330438529,1719403833461,-150.0,0.00021769,2]
[330438530,1719403833471,-150.0,0.00021776,2]
[330438531,1719403833482,-150.0,0.00021777,2]
[330438532,1719403833492,-150.0,0.00021778,2]
[330438533,1719403833503,-474.97828798,0.0002178,2]
[330438534,1719403833515,-150.0,0.00021781,2]
[330438535,1719403833525,-150.0,0.00021782,2]
[330438536,1719403833536,-150.0,0.00021788,2]
[330438537,1719403833545,-150.0,0.00021788,2]
[330438538,1719403833556,-384.90168169,0.00021789,2]
[330438539,1719403833565,-154.35,0.0002179,2]
[330438540,1719403833576,-154.35,0.0002179,2]
[330438541,1719403833587,-150.0,0.00021791,2]
[330438542,1719403833597,-150.0,0.00021792,2]
[330438543,1719403833607,-150.0,0.00021796,2]
[330438544,1719403833617,-150.0,0.00021797,2]
[330438545,1719403833632,-150.0,0.00021797,2]
[330438546,1719403833643,-150.0,0.00021797,2]
[330438547,1719403833653,-150.0,0.00021798,2]
[330438548,1719403833663,-600.0,0.000218,7]
[330438549,1719403833674,-28387.56445412,0.000218,2]
[330438550,1719403833707,-3082.03617125,0.000218,2]
[330438561,1719403837588,-1012.87391772,0.00021732,2]
[330438562,1719403837598,-94192.00919675,0.000218,7]
[330438563,1719403837608,-98.40543538,0.000218,2]
[330438564,1719403837619,-1987.44088235,0.000218,2]
[330438565,1719403837631,-37540.75734402,0.000218,2]
[330438566,1719403837750,-6775.96856293,0.000218,2]
[330438567,1719403838154,-343.07718,0.000218,2]
[330438568,1719403838166,-989.54247723,0.000218,2]
[330438569,1719403838178,-1811.04867762,0.000218,2]
[330438570,1719403838191,-858.74623956,0.000218,2]
[330438610,1719403842603,-2500.0,0.00021095,2]
[330438611,1719403842612,-329.58704795,0.000218,2]
[330438612,1719403842730,-758.19771398,0.000218,2]
[330438613,1719403842754,-25215.57755807,0.000218,2]
[330438614,1719403842791,-13138.76480825,0.000218,2]
[330438615,1719403842854,-143303.63173395,0.000218,2]
[330438616,1719403842865,-298.72,0.000218,2]
[330438617,1719403842877,-4135.607814,0.000218,2]
[330438618,1719403842916,-1267.53629767,0.000218,2]
[330438619,1719403842928,-23138.65814989,0.000218,2]
[330438620,1719403842981,-362.7567012,0.000218,2]
[330438623,1719403842992,-495.87980047,0.000218,2]
[330438624,1719403843004,-500.0,0.000218,2]
[330438653,1719403845699,-3036.84772426,0.000218,2]
[330438654,1719403845712,-9245.45545626,0.000218,2]
[330438655,1719403845766,-611.15988,0.000218,2]
[330438656,1719403845944,-564.6081624,0.000218,2]
[330438657,1719403846010,-526.0,0.000218,2]
[330438718,1719404305815,34973.06482861,0.00019451,30]
[330438727,1719404957112,-155.17239839,0.00018,2]
[330438739,1719405032427,-169.61234555,0.00018,2]
[330438740,1719405032436,-418.94,0.00018184,2]
[330438741,1719405032446,-173.34,0.00019687,2]
[330438742,1719405032455,-250.0,0.00019756,2]
[330438743,1719405032465,-600.0,0.00019836,2]
[330438744,1719405032478,-1556.34,0.00019836,2]
[330438745,1719405032488,-2852.3,0.00019836,2]
[330438746,1719405032497,-2750.48,0.00019956,2]
[330438747,1719405032507,-165.58,0.00020007,2]
[330438748,1719405032518,-2000.0,0.00020092,3]
[330438749,1719405032527,-160.55,0.00020441,2]
[330438750,1719405032537,-418.94,0.00020448,2]
[330438751,1719405032548,-499.99,0.00020461,2]
[330438752,1719405032559,-1801.29,0.00020461,2]
[330438753,1719405032569,-150.99,0.00020512,2]
[330438754,1719405032579,-2500.0,0.00020512,2]
[330438755,1719405032588,-156.82,0.00020524,2]
[330438756,1719405032599,-232252.90391098,0.00020612,2]
[330438757,1719405032611,-1052.81538556,0.00020612,2]
[330438758,1719405032631,-5854.9058077,0.00020612,2]
[330438759,1719405032645,-2452.83376515,0.00020612,2]
[330438760,1719405032695,-3386.54113061,0.00020612,2]
[330438761,1719405032704,-5.24397216,0.00020691,2]
[330438762,1719405032716,-469.02406266,0.00020691,2]
[330438766,1719405037731,-2179.76870882,0.00020512,2]
[330438767,1719405037743,-3180.7408274,0.00020512,2]
[330438768,1719405037770,-2123.93814826,0.00020512,2]
[330438769,1719405037783,-1051.02158597,0.00020512,2]
[330438770,1719405037795,-3735.53908701,0.00020512,2]
[330438772,1719405037806,-4971.6972,0.00020512,2]
[330438775,1719405037826,-5649.53764994,0.00020512,2]
[330438782,1719405037911,-5555.65545771,0.00020512,2]
[330438793,1719405038345,-6673.91827701,0.00020512,2]
[330438794,1719405038357,-3329.92266,0.00020512,2]
[330438795,1719405038368,-32162.41963906,0.00020512,2]
[330438796,1719405038380,-5285.55001324,0.00020512,2]
[330438797,1719405038392,-2794.28458403,0.00020512,2]
[330438798,1719405038403,-166306.00616155,0.00020512,2]
[330438799,1719405038413,-525.72196518,0.00020691,2]
[330438800,1719405038423,-400.0,0.00020791,2]
[330438801,1719405038435,-1250.0,0.00021,2]
[330438802,1719405038445,-1000.0,0.00021,2]
[330438803,1719405038455,-225.0,0.00021,2]
[330438804,1719405038465,-355.0,0.00021,2]
[330438805,1719405038480,-717.18626309,0.00021194,2]
[330438806,1719405038490,-500.0,0.00021195,2]
[330438807,1719405038499,-500.0,0.00021195,2]
[330438808,1719405038509,-1300.0,0.00021195,2]
[330438809,1719405038519,-900.0,0.00021195,2]
[330438810,1719405038528,-500.0,0.00021195,2]
[330438811,1719405038537,-1068.08446042,0.00021364,2]
[330438812,1719405038548,-1019.9563332,0.00021364,2]
[330438813,1719405038558,-476.53409804,0.00021559,2]
[330438814,1719405038567,-384.74,0.00021644,2]
[330438815,1719405038576,-2489.82568846,0.00021681,2]
[330438816,1719405038585,-168.49841357,0.000217,2]
[330438817,1719405038595,-500.0,0.000217,2]
[330438818,1719405038605,-100000.0,0.000217,2]
[330438819,1719405038614,-1000.0,0.000217,2]
[330438820,1719405038624,-174.49944535,0.000217,2]
[330438821,1719405038634,-734.03444047,0.000217,2]
[330438822,1719405038645,-7500.0,0.000217,2]
[330438823,1719405038655,-229.29431984,0.000217,2]
[330438824,1719405038664,-2785.07766644,0.000217,2]
[330438825,1719405038673,-734.03444045,0.00021718,2]
[330438826,1719405038685,-500.0,0.00021725,2]
[330438827,1719405038696,-200.0,0.00021725,2]
[330438828,1719405038706,-150.0,0.00021725,2]
[330438829,1719405038715,-150.0,0.00021725,2]
[330438830,1719405038725,-150.0,0.00021729,2]
[330438831,1719405038737,-150.0,0.00021735,2]
[330438832,1719405038748,-734.03444045,0.00021736,2]
[330438833,1719405038758,-150.0,0.0002174,2]
[330438834,1719405038768,-150.0,0.00021743,2]
[330438835,1719405038778,-1300.0,0.00021743,2]
[330438836,1719405038788,-900.0,0.00021743,2]
[330438837,1719405038798,-150.0,0.00021744,2]
[330438838,1719405038808,-150.0,0.0002175,2]
[330438839,1719405038817,-150.0,0.00021751,2]
[330438840,1719405038827,-184.33359864,0.00021752,4]
[330438841,1719405038837,-150.0,0.00021753,2]
[330438842,1719405038847,-734.03444045,0.00021755,2]
[330438843,1719405038857,-150.0,0.0002176,2]
[330438844,1719405038867,-150.0,0.00021763,2]
[330438845,1719405038876,-150.0,0.00021766,2]
[330438846,1719405038885,-150.0,0.00021768,2]
[330438847,1719405038895,-734.03444045,0.00021773,2]
[330438848,1719405038905,-150.0,0.00021774,2]
[330438849,1719405038914,-150.0,0.00021774,2]
[330438850,1719405038923,-150.0,0.00021777,2]
[330438851,1719405038935,-150.0,0.0002178,2]
[330438852,1719405038944,-150.0,0.00021784,2]
[330438853,1719405038954,-150.0,0.00021787,2]
[330438854,1719405038964,-150.0,0.00021788,2]
[330438855,1719405038975,-150.0,0.00021789,2]
[330438856,1719405038985,-154.35,0.0002179,2]
[330438857,1719405038995,-154.35,0.0002179,2]
[330438858,1719405039005,-734.03444045,0.00021791,2]
[330438859,1719405039015,-150.0,0.00021791,2]
[330438860,1719405039025,-150.0,0.00021793,2]
[330438861,1719405039035,-18220.96677571,0.00021799,30]
[330438862,1719405039046,-18220.96677571,0.00021799,30]
[330438863,1719405039056,-702.0,0.000218,2]
[330438864,1719405039067,-72096.00459837,0.000218,7]
[330438865,1719405039078,-117992.14199274,0.000218,2]
[330438866,1719405039093,-653.67901261,0.000218,2]
[330438867,1719405039113,-435.3147,0.000218,2]
[330438868,1719405039129,-569.78816292,0.000218,2]
[330438875,1719405039900,-20040.54534944,0.000218,2]
[330438876,1719405039913,-6933.01282375,0.000218,2]
[330438877,1719405039935,-345.49999998,0.000218,2]
[330438878,1719405039947,-1034.268095,0.000218,2]
[330438879,1719405040044,-11506.35421985,0.000218,2]
[330438880,1719405040156,-1129.10829927,0.000218,2]
[330438881,1719405040168,-1179.01025346,0.000218,2]
[330438882,1719405040263,-411.89588285,0.000218,2]
[330438883,1719405040276,-880.188012,0.000218,2]
[330438884,1719405040287,-512.0,0.000218,2]
[330438885,1719405040299,-807.664508,0.000218,2]
[330438886,1719405040371,-470.89476816,0.000218,2]
[330438887,1719405040383,-4737.26219031,0.000218,2]
[330438914,1719405043516,-184.33359864,0.0002175,4]
[330438915,1719405043527,-1706.92983135,0.000218,2]
[330438916,1719405043562,-22568.93764906,0.000218,2]
[330438917,1719405043574,-498.40500001,0.000218,2]
[330438918,1719405043594,-1512.477275,0.000218,2]
[330438919,1719405043614,-373.5132,0.000218,2]
[330438920,1719405043630,-2123.69096423,0.000218,2]
[330438921,1719405043642,-1466.79589,0.000218,2]
[330438922,1719405043655,-111559.76327077,0.000218,2]
[330438923,1719405043698,-21304.15268357,0.000218,2]
[330438924,1719405043709,-2145.00831964,0.000218,2]
[330438927,1719405045891,-494.61701671,0.000218,2]
[330438928,1719405046001,-974.95755369,0.000218,2]
[330438929,1719405046013,-2340.52740496,0.000218,2]
[330438930,1719405046050,-663.59999999,0.000218,2]
[330438931,1719405046070,-18705.14663532,0.000218,2]
[330438932,1719405046172,-2016.69421926,0.000218,2]
[330438933,1719405046184,-6730.69217821,0.000218,2]
[330438934,1719405046197,-1464.85394051,0.000218,2]
[330438954,1719405669524,-6859.05569181,0.000139,2]
[330438955,1719405669551,-740.63865152,0.0001399,2]
[330438956,1719405669576,-169.96635001,0.0001399,2]
[330438957,1719405669601,-150.0,0.00013999,2]
[330438958,1719405669630,-300.0,0.00013999,2]
[330438959,1719405669662,-25630.33930666,0.00014,2]
[330438985,1719406232180,-1463.58022488,0.000139,2]
[330438986,1719406232190,-696.39427235,0.000139,2]
[330438987,1719406232255,-753.2837766,0.000139,2]
[330438988,1719406232327,-697.11121979,0.000139,2]
[330438989,1719406232339,-978.26299512,0.000139,2]
[330438990,1719406232348,-229.71819632,0.000139,2]
[330438991,1719406232356,-801.41655583,0.000139,2]
[330438992,1719406232393,-600.0,0.000139,2]
[330438993,1719406232404,-1000.0,0.000139,2]
[330438994,1719406232564,-2000.0,0.000139,2]
[330438995,1719406232576,-3894.6214267,0.000139,2]
[330438996,1719406232585,-318.15881835,0.000139,2]
[330438997,1719406232594,-2634.3660974,0.000139,2]
[330438998,1719406232603,-300.0,0.00013999,2]
[330438999,1719406232613,-105453.70964594,0.00014,2]
[330439011,1719406238128,-835.77,0.00014,2]
[330439012,1719406238140,-45719.13836054,0.00014,2]
[330439013,1719406238152,-6153.896,0.00014,2]
[330439014,1719406238249,-28595.34813619,0.00014,2]
[330439015,1719406238261,-30963.59706,0.00014,2]
[330439016,1719406238274,-33017.57440624,0.00014,2]
[330439017,1719406238286,-40188.70718728,0.00014,2]
[330439018,1719406238362,-251081.35051572,0.00014,2]
[330439019,1719406238407,-30732.0,0.00014,2]
[330439020,1719406238418,-566.34980186,0.00014,2]
[330439025,1719406240757,-567.26315153,0.00014,2]
[330439026,1719406240769,-621404.34324576,0.00014,2]
[330439027,1719406240800,-282.99193758,0.00014,2]
[330439033,1719406243154,-347.415,0.00014,2]
[330439034,1719406243313,-118316.83377625,0.00014,2]
[330439035,1719406243512,-755.31830773,0.00014,2]
[330439079,1719406396741,200.0,0.00025852,120]
[330439080,1719406399897,1000.0,0.00025852,120]
[330439094,1719406786099,500.0,0.00026,120]
[330439095,1719406798356,500.0,0.00026,120]
[330439098,1719407125113,194502.98250301,0.0002,15]
[330439100,1719407199383,-155.00523606,0.00012662,2]
[330439116,1719407432361,-468.13,0.00011448,2]
[330439118,1719407432371,-421.36858621,0.00012662,2]
[330439120,1719407432381,-11.90909053,0.00012662,2]